[Event "Titled Tuesday Blitz May 9 Late 2023"]
[White "Mortazavi, Ali"]
[Black "Fernandez Guillen, Ernesto J."]
[WhiteFideId "401323"]
[BlackFideId "3512428"]
[WhiteElo "2339"]
[BlackElo "2429"]
[Result "1-0"]
[Round "09"]
[TimeControl "180+2"]
[Date "2023.05.09"]
[WhiteClock "0:00:13"]
[BlackClock "0:00:30"]

1. Nf3 {[%clk 0:03:00]}  Nf6 {[%clk 0:02:59]} 2. g3 {[%clk 0:03:01]}  g6 {[%clk 0:02:57]} 3. Bg2 {[%clk 0:03:02]}  Bg7 {[%clk 0:02:58]} 4. O-O {[%clk 0:03:03]}  O-O {[%clk 0:02:59]} 5. d3 {[%clk 0:03:03]}  d5 {[%clk 0:02:59]} 6. Nbd2 {[%clk 0:03:03]}  c6 {[%clk 0:03:00]} 7. e4 {[%clk 0:03:03]}  Qc7 {[%clk 0:02:58]} 8. Re1 {[%clk 0:03:02]}  e6 {[%clk 0:02:53]} 9. c3 {[%clk 0:02:53]}  c5 {[%clk 0:02:52]} 10. exd5 {[%clk 0:02:41]}  exd5 {[%clk 0:02:51]} 11. Nb3 {[%clk 0:02:37]}  b6 {[%clk 0:02:44]} 12. Bf4 {[%clk 0:02:36]}  Qd8 {[%clk 0:02:44]} 13. d4 {[%clk 0:02:31]}  c4 {[%clk 0:02:40]} 14. Nbd2 {[%clk 0:02:32]}  Bb7 {[%clk 0:02:40]} 15. Ne5 {[%clk 0:02:31]}  Qc8 {[%clk 0:02:41]} 16. a4 {[%clk 0:02:09]}  Nc6 {[%clk 0:02:37]} 17. Nxc6 {[%clk 0:02:06]}  Bxc6 {[%clk 0:02:37]} 18. Be5 {[%clk 0:02:06]}  Re8 {[%clk 0:02:34]} 19. a5 {[%clk 0:01:59]}  b5 {[%clk 0:02:32]} 20. h3 {[%clk 0:01:53]}  a6 {[%clk 0:02:28]} 21. Nf1 {[%clk 0:01:37]}  Qb7 {[%clk 0:02:25]} 22. Ne3 {[%clk 0:01:36]}  Rad8 {[%clk 0:02:23]} 23. b4 {[%clk 0:01:29]}  Ne4 {[%clk 0:02:18]} 24. Bxg7 {[%clk 0:01:29]}  Kxg7 {[%clk 0:02:19]} 25. Qc1 {[%clk 0:01:21]}  Re7 {[%clk 0:02:07]} 26. Ng4 {[%clk 0:01:20]}  Rde8 {[%clk 0:02:06]} 27. Qh6+ {[%clk 0:01:18]}  Kh8 {[%clk 0:01:58]} 28. Rxe4 {[%clk 0:01:14]}  f6 {[%clk 0:01:49]} 29. Rxe7 {[%clk 0:01:08]}  Qxe7 {[%clk 0:01:50]} 30. Kh2 {[%clk 0:01:08]}  Qf7 {[%clk 0:01:44]} 31. Bf3 {[%clk 0:01:07]}  Re6 {[%clk 0:01:40]} 32. Qf4 {[%clk 0:01:06]}  Kg7 {[%clk 0:01:39]} 33. Qh6+ {[%clk 0:01:05]}  Kh8 {[%clk 0:01:39]} 34. Qf4 {[%clk 0:01:04]}  Kg7 {[%clk 0:01:39]} 35. Ra2 {[%clk 0:01:05]}  h5 {[%clk 0:01:32]} 36. Qh6+ {[%clk 0:01:02]}  Kg8 {[%clk 0:01:32]} 37. Ne3 {[%clk 0:01:02]}  Re7 {[%clk 0:01:31]} 38. Re2 {[%clk 0:00:54]}  Re8 {[%clk 0:01:26]} 39. Qf4 {[%clk 0:00:46]}  Kg7 {[%clk 0:01:24]} 40. Qd6 {[%clk 0:00:45]}  Re6 {[%clk 0:01:25]} 41. Qf4 {[%clk 0:00:41]}  Re8 {[%clk 0:01:22]} 42. h4 {[%clk 0:00:36]}  Bb7 {[%clk 0:01:05]} 43. Ng2 {[%clk 0:00:35]}  Rxe2 {[%clk 0:01:04]} 44. Bxe2 {[%clk 0:00:36]}  Qe7 {[%clk 0:01:03]} 45. Bf3 {[%clk 0:00:36]}  Bc6 {[%clk 0:01:01]} 46. Ne3 {[%clk 0:00:36]}  Qd7 {[%clk 0:01:00]} 47. g4 {[%clk 0:00:35]}  hxg4 {[%clk 0:00:59]} 48. Nxg4 {[%clk 0:00:36]}  Qe7 {[%clk 0:00:58]} 49. Qh6+ {[%clk 0:00:32]}  Kf7 {[%clk 0:00:57]} 50. h5 {[%clk 0:00:29]}  Qd6+ {[%clk 0:00:54]} 51. Kg2 {[%clk 0:00:29]}  gxh5 {[%clk 0:00:54]} 52. Ne5+ {[%clk 0:00:27]}  Ke6 {[%clk 0:00:51]} 53. Bxh5 {[%clk 0:00:23]}  Bb7 {[%clk 0:00:42]} 54. Bg4+ {[%clk 0:00:22]}  Ke7 {[%clk 0:00:41]} 55. Qg7+ {[%clk 0:00:22]}  Ke8 {[%clk 0:00:42]} 56. Qg8+ {[%clk 0:00:16]}  Ke7 {[%clk 0:00:42]} 57. Qf7+ {[%clk 0:00:16]}  Kd8 {[%clk 0:00:42]} 58. Ng6 {[%clk 0:00:14]}  Bc6 {[%clk 0:00:39]} 59. Qf8+ {[%clk 0:00:14]}  Kc7 {[%clk 0:00:35]} 60. Qxd6+ {[%clk 0:00:14]}  Kxd6 {[%clk 0:00:36]} 61. Kf3 {[%clk 0:00:15]}  Be8 {[%clk 0:00:36]} 62. Bf5 {[%clk 0:00:13]}  Bc6 {[%clk 0:00:35]} 63. Kf4 {[%clk 0:00:14]}  Be8 {[%clk 0:00:35]} 64. Bc2 {[%clk 0:00:13]}  Bd7 {[%clk 0:00:34]} 65. Nh4 {[%clk 0:00:13]}  Bh3 {[%clk 0:00:32]} 66. Bf5 {[%clk 0:00:13]}  Bf1 {[%clk 0:00:30]} 67. Bc8 {[%clk 0:00:13]}  Kc7 {[%clk 0:00:31]} 68. Bxa6 {[%clk 0:00:13]}  Kc6 {[%clk 0:00:31]} 69. Bc8 {[%clk 0:00:13]}  Kc7 {[%clk 0:00:32]} 70. Be6 {[%clk 0:00:13]}  Kc6 {[%clk 0:00:32]} 71. Kf5 {[%clk 0:00:12]}  Bd3+ {[%clk 0:00:31]} 72. Kxf6 {[%clk 0:00:13]}  Be4 {[%clk 0:00:30]} 73. f4 {[%clk 0:00:13]} 1-0


[Site "https://www.chess.com"]

[Event "Titled Tuesday Blitz May 9 Late 2023"]
[White "Naroditsky, Daniel"]
[Black "Santos Ruiz, Miguel"]
[WhiteFideId "2026961"]
[BlackFideId "22291482"]
[WhiteElo "2633"]
[BlackElo "2499"]
[Result "1/2-1/2"]
[Round "09"]
[TimeControl "180+2"]
[Date "2023.05.09"]
[WhiteClock "0:00:10"]
[BlackClock "0:00:15"]

1. e4 {[%clk 0:03:00]}  e5 {[%clk 0:02:59]} 2. Nf3 {[%clk 0:03:01]}  Nc6 {[%clk 0:02:59]} 3. Bb5 {[%clk 0:03:02]}  Nf6 {[%clk 0:03:00]} 4. O-O {[%clk 0:03:02]}  Nxe4 {[%clk 0:03:00]} 5. d4 {[%clk 0:03:03]}  Nd6 {[%clk 0:02:59]} 6. Ba4 {[%clk 0:03:04]}  e4 {[%clk 0:02:52]} 7. Ne5 {[%clk 0:03:04]}  g6 {[%clk 0:02:53]} 8. Nc3 {[%clk 0:03:02]}  Bg7 {[%clk 0:02:51]} 9. Bf4 {[%clk 0:03:01]}  O-O {[%clk 0:02:39]} 10. Re1 {[%clk 0:03:01]}  Re8 {[%clk 0:02:23]} 11. Nxe4 {[%clk 0:03:01]}  Nxe4 {[%clk 0:02:08]} 12. Rxe4 {[%clk 0:03:02]}  Qe7 {[%clk 0:01:19]} 13. Re3 {[%clk 0:02:03]}  Nxe5 {[%clk 0:01:05]} 14. Bxe5 {[%clk 0:01:59]}  Bxe5 {[%clk 0:00:59]} 15. dxe5 {[%clk 0:01:59]}  Qc5 {[%clk 0:00:31]} 16. Qe2 {[%clk 0:01:59]}  a6 {[%clk 0:00:21]} 17. Rd1 {[%clk 0:01:56]}  b5 {[%clk 0:00:21]} 18. Bb3 {[%clk 0:01:56]}  Re7 {[%clk 0:00:18]} 19. Qf3 {[%clk 0:01:42]}  Rb8 {[%clk 0:00:19]} 20. h4 {[%clk 0:01:10]}  Rb6 {[%clk 0:00:19]} 21. Rd5 {[%clk 0:01:02]}  Qc6 {[%clk 0:00:12]} 22. h5 {[%clk 0:01:01]}  gxh5 {[%clk 0:00:06]} 23. Qxh5 {[%clk 0:00:47]}  Qh6 {[%clk 0:00:06]} 24. Qf5 {[%clk 0:00:40]}  Rg6 {[%clk 0:00:06]} 25. Rd4 {[%clk 0:00:28]}  Qg7 {[%clk 0:00:06]} 26. g3 {[%clk 0:00:25]}  Rg5 {[%clk 0:00:05]} 27. Qf4 {[%clk 0:00:21]}  Rgxe5 {[%clk 0:00:05]} 28. Bxf7+ {[%clk 0:00:20]}  Kh8 {[%clk 0:00:04]} 29. Rxe5 {[%clk 0:00:13]}  Qxe5 {[%clk 0:00:04]} 30. Bb3 {[%clk 0:00:06]}  Qxf4 {[%clk 0:00:04]} 31. Rxf4 {[%clk 0:00:07]}  Kg7 {[%clk 0:00:04]} 32. f3 {[%clk 0:00:05]}  d6 {[%clk 0:00:05]} 33. Kf2 {[%clk 0:00:05]}  c5 {[%clk 0:00:05]} 34. Bd5 {[%clk 0:00:05]}  Be6 {[%clk 0:00:05]} 35. Re4 {[%clk 0:00:04]}  Kf6 {[%clk 0:00:05]} 36. Bxe6 {[%clk 0:00:03]}  Rxe6 {[%clk 0:00:06]} 37. Rh4 {[%clk 0:00:02]}  Kg6 {[%clk 0:00:05]} 38. Rg4+ {[%clk 0:00:02]}  Kf6 {[%clk 0:00:05]} 39. Rg8 {[%clk 0:00:02]}  d5 {[%clk 0:00:04]} 40. Rd8 {[%clk 0:00:02]}  d4 {[%clk 0:00:04]} 41. Rd5 {[%clk 0:00:02]}  Rc6 {[%clk 0:00:05]} 42. f4 {[%clk 0:00:02]}  Kg6 {[%clk 0:00:04]} 43. g4 {[%clk 0:00:03]}  a5 {[%clk 0:00:03]} 44. Kf3 {[%clk 0:00:03]}  a4 {[%clk 0:00:04]} 45. a3 {[%clk 0:00:03]}  b4 {[%clk 0:00:04]} 46. axb4 {[%clk 0:00:02]}  cxb4 {[%clk 0:00:05]} 47. Rxd4 {[%clk 0:00:03]}  Rxc2 {[%clk 0:00:05]} 48. Rxb4 {[%clk 0:00:03]}  a3 {[%clk 0:00:06]} 49. Rb6+ {[%clk 0:00:03]}  Kg7 {[%clk 0:00:06]} 50. Rb7+ {[%clk 0:00:04]}  Kg8 {[%clk 0:00:05]} 51. bxa3 {[%clk 0:00:03]}  Rc3+ {[%clk 0:00:05]} 52. Ke4 {[%clk 0:00:04]}  Rxa3 {[%clk 0:00:06]} 53. Kf5 {[%clk 0:00:04]}  Ra6 {[%clk 0:00:06]} 54. Kg5 {[%clk 0:00:04]}  Rg6+ {[%clk 0:00:06]} 55. Kh5 {[%clk 0:00:04]}  Rf6 {[%clk 0:00:06]} 56. f5 {[%clk 0:00:04]}  Rd6 {[%clk 0:00:07]} 57. g5 {[%clk 0:00:04]}  Rd1 {[%clk 0:00:07]} 58. Rb8+ {[%clk 0:00:05]}  Kg7 {[%clk 0:00:07]} 59. f6+ {[%clk 0:00:05]}  Kf7 {[%clk 0:00:07]} 60. Rb7+ {[%clk 0:00:05]}  Kg8 {[%clk 0:00:08]} 61. Rg7+ {[%clk 0:00:02]}  Kh8 {[%clk 0:00:08]} 62. Re7 {[%clk 0:00:02]}  Kg8 {[%clk 0:00:07]} 63. Kg4 {[%clk 0:00:02]}  Rg1+ {[%clk 0:00:07]} 64. Kf4 {[%clk 0:00:02]}  Rf1+ {[%clk 0:00:07]} 65. Ke5 {[%clk 0:00:03]}  Re1+ {[%clk 0:00:08]} 66. Kd6 {[%clk 0:00:04]}  Rd1+ {[%clk 0:00:08]} 67. Kc7 {[%clk 0:00:04]}  Rg1 {[%clk 0:00:08]} 68. Rg7+ {[%clk 0:00:03]}  Kf8 {[%clk 0:00:08]} 69. Kd6 {[%clk 0:00:03]}  Rd1+ {[%clk 0:00:05]} 70. Ke6 {[%clk 0:00:04]}  Re1+ {[%clk 0:00:06]} 71. Kf5 {[%clk 0:00:04]}  Rf1+ {[%clk 0:00:07]} 72. Ke4 {[%clk 0:00:05]}  Re1+ {[%clk 0:00:07]} 73. Kf3 {[%clk 0:00:05]}  Rg1 {[%clk 0:00:08]} 74. Kf2 {[%clk 0:00:06]}  Rg4 {[%clk 0:00:08]} 75. Kf3 {[%clk 0:00:07]}  Rg1 {[%clk 0:00:08]} 76. Kf4 {[%clk 0:00:07]}  Rf1+ {[%clk 0:00:08]} 77. Ke5 {[%clk 0:00:07]}  Re1+ {[%clk 0:00:09]} 78. Kd4 {[%clk 0:00:08]}  Rd1+ {[%clk 0:00:09]} 79. Ke3 {[%clk 0:00:08]}  Rg1 {[%clk 0:00:10]} 80. Ke2 {[%clk 0:00:09]}  Rg4 {[%clk 0:00:10]} 81. Kf2 {[%clk 0:00:08]}  Rh4 {[%clk 0:00:10]} 82. Kg3 {[%clk 0:00:06]}  Rh1 {[%clk 0:00:10]} 83. Kg2 {[%clk 0:00:05]}  Rh5 {[%clk 0:00:10]} 84. Kf3 {[%clk 0:00:05]}  h6 {[%clk 0:00:09]} 85. g6 {[%clk 0:00:01]}  Rf5+ {[%clk 0:00:10]} 86. Kg4 {[%clk 0:00:02]}  Rxf6 {[%clk 0:00:10]} 87. Ra7 {[%clk 0:00:02]}  Rxg6+ {[%clk 0:00:11]} 88. Kf5 {[%clk 0:00:02]}  Rb6 {[%clk 0:00:10]} 89. Kg4 {[%clk 0:00:02]}  Ke8 {[%clk 0:00:10]} 90. Kh5 {[%clk 0:00:02]}  Kd8 {[%clk 0:00:11]} 91. Rh7 {[%clk 0:00:03]}  Rb5+ {[%clk 0:00:11]} 92. Kxh6 {[%clk 0:00:04]}  Rb6+ {[%clk 0:00:12]} 93. Kg7 {[%clk 0:00:05]}  Rd6 {[%clk 0:00:12]} 94. Kg8 {[%clk 0:00:06]}  Rd7 {[%clk 0:00:13]} 95. Rh8 {[%clk 0:00:07]}  Re7 {[%clk 0:00:13]} 96. Rh7 {[%clk 0:00:07]}  Re8+ {[%clk 0:00:13]} 97. Kg7 {[%clk 0:00:08]}  Re7+ {[%clk 0:00:14]} 98. Kg6 {[%clk 0:00:09]}  Rxh7 {[%clk 0:00:15]} 99. Kxh7 {[%clk 0:00:10]} 1/2-1/2


[Site "https://www.chess.com"]

[Event "Titled Tuesday Blitz May 9 Late 2023"]
[White "Pichot, Alan"]
[Black "Klukin, Kirill"]
[WhiteFideId "110973"]
[BlackFideId "24199273"]
[WhiteElo "2573"]
[BlackElo "2344"]
[Result "1-0"]
[Round "09"]
[TimeControl "180+2"]
[Date "2023.05.09"]
[WhiteClock "0:00:03"]
[BlackClock "0:00:02"]

1. e4 {[%clk 0:02:44]}  c5 {[%clk 0:03:00]} 2. Nf3 {[%clk 0:02:41]}  g6 {[%clk 0:03:00]} 3. d4 {[%clk 0:02:41]}  cxd4 {[%clk 0:03:01]} 4. Nxd4 {[%clk 0:02:41]}  Bg7 {[%clk 0:03:01]} 5. c4 {[%clk 0:02:42]}  Nc6 {[%clk 0:03:02]} 6. Be3 {[%clk 0:02:42]}  Nf6 {[%clk 0:03:02]} 7. Nc3 {[%clk 0:02:43]}  O-O {[%clk 0:03:03]} 8. Be2 {[%clk 0:02:43]}  d6 {[%clk 0:03:04]} 9. O-O {[%clk 0:02:43]}  Bd7 {[%clk 0:03:04]} 10. h3 {[%clk 0:02:43]}  Nxd4 {[%clk 0:03:04]} 11. Bxd4 {[%clk 0:02:44]}  Bc6 {[%clk 0:03:05]} 12. Qc2 {[%clk 0:02:44]}  a5 {[%clk 0:03:03]} 13. Rad1 {[%clk 0:02:44]}  a4 {[%clk 0:03:03]} 14. c5 {[%clk 0:02:40]}  Qa5 {[%clk 0:02:52]} 15. cxd6 {[%clk 0:02:39]}  exd6 {[%clk 0:02:53]} 16. Rfe1 {[%clk 0:02:40]}  Rfe8 {[%clk 0:02:52]} 17. Bf1 {[%clk 0:02:39]}  Rac8 {[%clk 0:02:50]} 18. Qb1 {[%clk 0:02:28]}  Qb4 {[%clk 0:02:39]} 19. a3 {[%clk 0:02:25]}  Qa5 {[%clk 0:02:37]} 20. Bc4 {[%clk 0:02:15]}  b5 {[%clk 0:02:23]} 21. Ba2 {[%clk 0:02:04]}  b4 {[%clk 0:02:23]} 22. axb4 {[%clk 0:02:04]}  Qxb4 {[%clk 0:02:24]} 23. Qd3 {[%clk 0:01:46]}  Nh5 {[%clk 0:01:09]} 24. Bxg7 {[%clk 0:01:38]}  Nxg7 {[%clk 0:01:10]} 25. Qxd6 {[%clk 0:01:35]}  Qxb2 {[%clk 0:01:10]} 26. Nd5 {[%clk 0:01:26]}  Bxd5 {[%clk 0:01:09]} 27. Bxd5 {[%clk 0:01:25]}  Ne6 {[%clk 0:01:02]} 28. Ra1 {[%clk 0:01:10]}  Nc5 {[%clk 0:00:51]} 29. Ra2 {[%clk 0:00:55]}  Qc3 {[%clk 0:00:39]} 30. Re3 {[%clk 0:00:52]}  Qg7 {[%clk 0:00:19]} 31. Rf3 {[%clk 0:00:49]}  Nxe4 {[%clk 0:00:16]} 32. Qf4 {[%clk 0:00:39]}  Nc3 {[%clk 0:00:06]} 33. Bxf7+ {[%clk 0:00:33]}  Kh8 {[%clk 0:00:05]} 34. Bxe8 {[%clk 0:00:33]}  Nxa2 {[%clk 0:00:05]} 35. Qxa4 {[%clk 0:00:19]}  Nc3 {[%clk 0:00:05]} 36. Qd7 {[%clk 0:00:12]}  Qxd7 {[%clk 0:00:03]} 37. Bxd7 {[%clk 0:00:13]}  Rd8 {[%clk 0:00:03]} 38. Rf7 {[%clk 0:00:04]}  Ne4 {[%clk 0:00:02]} 39. Bc6 {[%clk 0:00:04]}  Nd6 {[%clk 0:00:02]} 40. Ra7 {[%clk 0:00:04]}  Nf5 {[%clk 0:00:03]} 41. Be4 {[%clk 0:00:04]}  Ng7 {[%clk 0:00:03]} 42. g4 {[%clk 0:00:04]}  Ne6 {[%clk 0:00:03]} 43. Kg2 {[%clk 0:00:04]}  Ng5 {[%clk 0:00:03]} 44. Bc2 {[%clk 0:00:04]}  Ne6 {[%clk 0:00:04]} 45. Kg3 {[%clk 0:00:04]}  Nd4 {[%clk 0:00:04]} 46. Be4 {[%clk 0:00:04]}  Rf8 {[%clk 0:00:05]} 47. f3 {[%clk 0:00:04]}  Ne6 {[%clk 0:00:05]} 48. h4 {[%clk 0:00:04]}  Nf4 {[%clk 0:00:05]} 49. h5 {[%clk 0:00:04]}  gxh5 {[%clk 0:00:06]} 50. Rxh7+ {[%clk 0:00:04]}  Kg8 {[%clk 0:00:06]} 51. g5 {[%clk 0:00:05]}  Ne6 {[%clk 0:00:02]} 52. Rxh5 {[%clk 0:00:04]}  Kg7 {[%clk 0:00:03]} 53. Rh7+ {[%clk 0:00:05]}  Kg8 {[%clk 0:00:04]} 54. g6 {[%clk 0:00:05]}  Nf4 {[%clk 0:00:02]} 55. Kg4 {[%clk 0:00:03]}  Rf6 {[%clk 0:00:01]} 56. Kg5 {[%clk 0:00:03]}  Rf8 {[%clk 0:00:02]} 57. Ra7 {[%clk 0:00:02]}  Ne6+ {[%clk 0:00:02]} 58. Kh6 {[%clk 0:00:03]}  Nf4 {[%clk 0:00:03]} 59. g7 {[%clk 0:00:03]}  Rf6+ {[%clk 0:00:03]} 60. Kg5 {[%clk 0:00:04]}  Rf7 {[%clk 0:00:03]} 61. Rxf7 {[%clk 0:00:03]}  Ne6+ {[%clk 0:00:02]} 62. Kf6 {[%clk 0:00:03]} 1-0


[Site "https://www.chess.com"]

[Event "Titled Tuesday Blitz May 9 Late 2023"]
[White "Krzyzanowski, Marcin"]
[Black "Gritsenko, Nikolai"]
[WhiteFideId "1132199"]
[BlackFideId "14112493"]
[WhiteElo "2471"]
[BlackElo "2389"]
[Result "1-0"]
[Round "09"]
[TimeControl "180+2"]
[Date "2023.05.09"]
[WhiteClock "0:00:09"]
[BlackClock "0:00:00"]

1. Nf3 {[%clk 0:03:00]}  c5 {[%clk 0:02:59]} 2. e4 {[%clk 0:02:58]}  Nf6 {[%clk 0:02:58]} 3. d3 {[%clk 0:02:56]}  Nc6 {[%clk 0:02:57]} 4. Nbd2 {[%clk 0:02:54]}  d5 {[%clk 0:02:57]} 5. Be2 {[%clk 0:02:47]}  e6 {[%clk 0:02:53]} 6. O-O {[%clk 0:02:47]}  Be7 {[%clk 0:02:53]} 7. Re1 {[%clk 0:02:47]}  O-O {[%clk 0:02:53]} 8. Bf1 {[%clk 0:02:47]}  b5 {[%clk 0:02:46]} 9. e5 {[%clk 0:02:45]}  Nd7 {[%clk 0:02:45]} 10. c3 {[%clk 0:02:38]}  b4 {[%clk 0:02:41]} 11. d4 {[%clk 0:02:38]}  bxc3 {[%clk 0:02:38]} 12. bxc3 {[%clk 0:02:39]}  c4 {[%clk 0:02:39]} 13. h4 {[%clk 0:02:36]}  Rb8 {[%clk 0:02:27]} 14. h5 {[%clk 0:02:34]}  h6 {[%clk 0:02:26]} 15. Nh2 {[%clk 0:02:32]}  f5 {[%clk 0:02:12]} 16. exf6 {[%clk 0:02:29]}  Nxf6 {[%clk 0:01:58]} 17. g3 {[%clk 0:02:01]}  Bd6 {[%clk 0:01:39]} 18. f4 {[%clk 0:01:54]}  Qa5 {[%clk 0:01:27]} 19. Re3 {[%clk 0:01:54]}  Bd7 {[%clk 0:01:07]} 20. Bh3 {[%clk 0:01:52]}  Rfe8 {[%clk 0:00:51]} 21. Ng4 {[%clk 0:01:47]}  Nxg4 {[%clk 0:00:49]} 22. Bxg4 {[%clk 0:01:46]}  Ba3 {[%clk 0:00:45]} 23. Nf3 {[%clk 0:01:42]}  Bb2 {[%clk 0:00:42]} 24. Bxb2 {[%clk 0:01:36]}  Rxb2 {[%clk 0:00:42]} 25. Qe1 {[%clk 0:01:36]}  Kf7 {[%clk 0:00:36]} 26. a4 {[%clk 0:01:31]}  Qb6 {[%clk 0:00:33]} 27. a5 {[%clk 0:01:28]}  Qb3 {[%clk 0:00:32]} 28. Rc1 {[%clk 0:01:19]}  Qa2 {[%clk 0:00:28]} 29. Nh4 {[%clk 0:01:13]}  Qxa5 {[%clk 0:00:21]} 30. Re2 {[%clk 0:01:07]}  Rxe2 {[%clk 0:00:19]} 31. Qxe2 {[%clk 0:01:07]}  Qb6 {[%clk 0:00:19]} 32. Qc2 {[%clk 0:01:06]}  Ne7 {[%clk 0:00:18]} 33. Qh7 {[%clk 0:01:03]}  Qb2 {[%clk 0:00:15]} 34. Rc2 {[%clk 0:00:53]}  Qb1+ {[%clk 0:00:14]} 35. Kh2 {[%clk 0:00:52]}  Ba4 {[%clk 0:00:13]} 36. Bxe6+ {[%clk 0:00:43]}  Kf6 {[%clk 0:00:13]} 37. Bf5 {[%clk 0:00:24]}  Bxc2 {[%clk 0:00:12]} 38. Bxc2 {[%clk 0:00:25]}  Qe1 {[%clk 0:00:12]} 39. Nf5 {[%clk 0:00:10]}  Qd2+ {[%clk 0:00:10]} 40. Kh3 {[%clk 0:00:09]}  Nxf5 {[%clk 0:00:04]} 41. Qxf5+ {[%clk 0:00:10]}  Ke7 {[%clk 0:00:04]} 42. Qe5+ {[%clk 0:00:09]}  Kf8 {[%clk 0:00:02]} 43. Qd6+ {[%clk 0:00:09]}  Re7 {[%clk 0:00:02]} 44. Bg6 {[%clk 0:00:09]}  Qe1 {[%clk 0:00:01]} 45. Qd8+ {[%clk 0:00:09]}  Re8 {[%clk 0:00:00]} 46. Qxd5 {[%clk 0:00:09]} 1-0


[Site "https://www.chess.com"]

[Event "Titled Tuesday Blitz May 9 Late 2023"]
[White "Holt, Conrad"]
[Black "Mazurkiewicz, Michal"]
[WhiteFideId "2034387"]
[BlackFideId "1124943"]
[WhiteElo "2592"]
[BlackElo "2054"]
[Result "1-0"]
[Round "09"]
[TimeControl "180+2"]
[Date "2023.05.09"]
[WhiteClock "0:02:24"]
[BlackClock "0:00:16"]

1. d4 {[%clk 0:03:00]}  Nf6 {[%clk 0:02:59]} 2. c4 {[%clk 0:03:01]}  e5 {[%clk 0:02:59]} 3. dxe5 {[%clk 0:03:01]}  Ng4 {[%clk 0:03:00]} 4. Bf4 {[%clk 0:03:01]}  g5 {[%clk 0:02:58]} 5. Bd2 {[%clk 0:03:01]}  Bg7 {[%clk 0:02:58]} 6. Nf3 {[%clk 0:02:56]}  h6 {[%clk 0:02:55]} 7. h4 {[%clk 0:02:54]}  Nxe5 {[%clk 0:02:53]} 8. hxg5 {[%clk 0:02:53]}  Nxf3+ {[%clk 0:02:53]} 9. gxf3 {[%clk 0:02:50]}  Bxb2 {[%clk 0:02:42]} 10. Nc3 {[%clk 0:02:49]}  Bxa1 {[%clk 0:02:28]} 11. Qxa1 {[%clk 0:02:48]}  Rg8 {[%clk 0:01:39]} 12. Nd5 {[%clk 0:02:43]}  Kf8 {[%clk 0:00:56]} 13. gxh6 {[%clk 0:02:40]}  f6 {[%clk 0:00:52]} 14. Nxf6 {[%clk 0:02:38]}  Rh8 {[%clk 0:00:42]} 15. Ne4 {[%clk 0:02:31]}  Rh7 {[%clk 0:00:27]} 16. Nf6 {[%clk 0:02:27]}  Qe7 {[%clk 0:00:24]} 17. Nxh7+ {[%clk 0:02:26]}  Qxh7 {[%clk 0:00:16]} 18. Qf6+ {[%clk 0:02:24]} 1-0


[Site "https://www.chess.com"]

[Event "Titled Tuesday Blitz May 9 Late 2023"]
[White "Kobo, Ori"]
[Black "MKlose11"]
[WhiteFideId "2812320"]
[WhiteElo "2454"]
[BlackElo "2609"]
[Result "0-1"]
[Round "09"]
[TimeControl "180+2"]
[Date "2023.05.09"]
[WhiteClock "0:00:01"]
[BlackClock "0:00:08"]

1. d4 {[%clk 0:03:00]}  Nf6 {[%clk 0:02:57]} 2. c4 {[%clk 0:03:01]}  c5 {[%clk 0:02:57]} 3. d5 {[%clk 0:03:00]}  b5 {[%clk 0:02:58]} 4. Nf3 {[%clk 0:02:59]}  bxc4 {[%clk 0:02:57]} 5. Nc3 {[%clk 0:02:59]}  g6 {[%clk 0:02:58]} 6. e4 {[%clk 0:02:59]}  d6 {[%clk 0:02:58]} 7. Bxc4 {[%clk 0:02:58]}  Bg7 {[%clk 0:02:59]} 8. O-O {[%clk 0:02:52]}  O-O {[%clk 0:02:59]} 9. h3 {[%clk 0:02:51]}  Ba6 {[%clk 0:02:58]} 10. Bxa6 {[%clk 0:02:48]}  Nxa6 {[%clk 0:02:59]} 11. Qe2 {[%clk 0:02:41]}  Nc7 {[%clk 0:02:58]} 12. Rd1 {[%clk 0:02:37]}  Nd7 {[%clk 0:02:57]} 13. Bf4 {[%clk 0:02:35]}  Rb8 {[%clk 0:02:52]} 14. Rab1 {[%clk 0:02:35]}  f6 {[%clk 0:02:45]} 15. Nd2 {[%clk 0:02:28]}  Qc8 {[%clk 0:02:40]} 16. h4 {[%clk 0:02:01]}  Qa6 {[%clk 0:02:38]} 17. Qe3 {[%clk 0:02:01]}  Nb5 {[%clk 0:02:28]} 18. Nxb5 {[%clk 0:02:00]}  Rxb5 {[%clk 0:02:28]} 19. b3 {[%clk 0:01:53]}  Rb7 {[%clk 0:02:14]} 20. a4 {[%clk 0:01:40]}  Rfb8 {[%clk 0:02:09]} 21. h5 {[%clk 0:01:35]}  Rb4 {[%clk 0:02:04]} 22. h6 {[%clk 0:01:33]}  Bf8 {[%clk 0:02:00]} 23. Qh3 {[%clk 0:01:32]}  Qc8 {[%clk 0:01:42]} 24. Nc4 {[%clk 0:01:19]}  Nb6 {[%clk 0:01:37]} 25. Qxc8 {[%clk 0:01:12]}  Nxc8 {[%clk 0:01:33]} 26. f3 {[%clk 0:00:57]}  Rxb3 {[%clk 0:01:30]} 27. Rxb3 {[%clk 0:00:58]}  Rxb3 {[%clk 0:01:30]} 28. Na5 {[%clk 0:00:59]}  Ra3 {[%clk 0:01:16]} 29. Rb1 {[%clk 0:00:54]}  Nb6 {[%clk 0:01:13]} 30. Nc6 {[%clk 0:00:51]}  Rxa4 {[%clk 0:01:14]} 31. Nxa7 {[%clk 0:00:48]}  Rxa7 {[%clk 0:01:13]} 32. Rxb6 {[%clk 0:00:48]}  g5 {[%clk 0:01:12]} 33. Be3 {[%clk 0:00:37]}  Bxh6 {[%clk 0:01:09]} 34. Kf2 {[%clk 0:00:27]}  Kf7 {[%clk 0:01:09]} 35. g3 {[%clk 0:00:25]}  Bg7 {[%clk 0:00:59]} 36. f4 {[%clk 0:00:25]}  gxf4 {[%clk 0:00:57]} 37. gxf4 {[%clk 0:00:26]}  f5 {[%clk 0:00:55]} 38. e5 {[%clk 0:00:16]}  dxe5 {[%clk 0:00:49]} 39. fxe5 {[%clk 0:00:17]}  Bxe5 {[%clk 0:00:45]} 40. Bxc5 {[%clk 0:00:18]}  Rd7 {[%clk 0:00:42]} 41. Rh6 {[%clk 0:00:07]}  Rxd5 {[%clk 0:00:38]} 42. Ba3 {[%clk 0:00:04]}  Bd4+ {[%clk 0:00:19]} 43. Kf3 {[%clk 0:00:04]}  Bc5 {[%clk 0:00:19]} 44. Bxc5 {[%clk 0:00:03]}  Rxc5 {[%clk 0:00:19]} 45. Rxh7+ {[%clk 0:00:04]}  Ke6 {[%clk 0:00:19]} 46. Rh6+ {[%clk 0:00:04]}  Ke5 {[%clk 0:00:19]} 47. Rh7 {[%clk 0:00:04]}  Rc3+ {[%clk 0:00:18]} 48. Ke2 {[%clk 0:00:04]}  e6 {[%clk 0:00:18]} 49. Rh4 {[%clk 0:00:04]}  Kd5 {[%clk 0:00:18]} 50. Ra4 {[%clk 0:00:05]}  e5 {[%clk 0:00:16]} 51. Ra5+ {[%clk 0:00:05]}  Kd4 {[%clk 0:00:16]} 52. Ra4+ {[%clk 0:00:06]}  Rc4 {[%clk 0:00:16]} 53. Ra5 {[%clk 0:00:06]}  Ke4 {[%clk 0:00:14]} 54. Ra3 {[%clk 0:00:05]}  f4 {[%clk 0:00:14]} 55. Kf2 {[%clk 0:00:05]}  Rc2+ {[%clk 0:00:14]} 56. Ke1 {[%clk 0:00:06]}  Kf5 {[%clk 0:00:12]} 57. Rh3 {[%clk 0:00:07]}  e4 {[%clk 0:00:12]} 58. Rh8 {[%clk 0:00:07]}  Kg4 {[%clk 0:00:12]} 59. Kd1 {[%clk 0:00:05]}  Ra2 {[%clk 0:00:12]} 60. Ke1 {[%clk 0:00:06]}  Kg3 {[%clk 0:00:10]} 61. Rg8+ {[%clk 0:00:03]}  Kf3 {[%clk 0:00:09]} 62. Rh8 {[%clk 0:00:04]}  Ra1+ {[%clk 0:00:08]} 63. Kd2 {[%clk 0:00:04]}  e3+ {[%clk 0:00:09]} 64. Kd3 {[%clk 0:00:05]}  Rd1+ {[%clk 0:00:09]} 65. Kc2 {[%clk 0:00:05]}  e2 {[%clk 0:00:10]} 66. Rh3+ {[%clk 0:00:03]}  Kg2 {[%clk 0:00:08]} 67. Re3 {[%clk 0:00:01]}  e1=Q {[%clk 0:00:08]} 0-1


[Site "https://www.chess.com"]